[Event "Titled Tuesday Blitz December 27 Late 2022"]
[White "Moral Garcia, Serafin"]
[Black "Rengifo Blancas, Renzo Jhonathan"]
[WhiteFideId "2201925"]
[BlackFideId "3807185"]
[WhiteElo "2238"]
[BlackElo "2131"]
[Result "0-1"]
[Round "08"]
[TimeControl "180+2"]
[Date "2022.12.27"]
[WhiteClock "0:00:08"]
[BlackClock "0:00:04"]

1. e4 {[%clk 0:03:00]}  e5 {[%clk 0:03:00]} 2. Nf3 {[%clk 0:02:57]}  Nc6 {[%clk 0:03:00]} 3. Bb5 {[%clk 0:02:56]}  Bc5 {[%clk 0:03:01]} 4. O-O {[%clk 0:02:56]}  Nf6 {[%clk 0:03:01]} 5. Bxc6 {[%clk 0:02:51]}  dxc6 {[%clk 0:03:00]} 6. d3 {[%clk 0:02:51]}  Bg4 {[%clk 0:02:59]} 7. Nbd2 {[%clk 0:02:50]}  Qe7 {[%clk 0:02:57]} 8. Re1 {[%clk 0:02:50]}  O-O-O {[%clk 0:02:56]} 9. Nf1 {[%clk 0:02:46]}  h5 {[%clk 0:02:56]} 10. Qe2 {[%clk 0:02:42]}  h4 {[%clk 0:02:56]} 11. h3 {[%clk 0:02:42]}  Bh5 {[%clk 0:02:55]} 12. Be3 {[%clk 0:02:41]}  Nd7 {[%clk 0:02:47]} 13. N1h2 {[%clk 0:02:39]}  Nf8 {[%clk 0:02:38]} 14. Rad1 {[%clk 0:02:28]}  Ne6 {[%clk 0:02:38]} 15. c3 {[%clk 0:02:26]}  g5 {[%clk 0:02:08]} 16. Bxc5 {[%clk 0:02:24]}  Qxc5 {[%clk 0:02:07]} 17. Qe3 {[%clk 0:02:23]}  Qxe3 {[%clk 0:02:05]} 18. Rxe3 {[%clk 0:02:22]}  f6 {[%clk 0:02:03]} 19. Rd2 {[%clk 0:02:20]}  Rd7 {[%clk 0:01:58]} 20. Ne1 {[%clk 0:02:14]}  Rhd8 {[%clk 0:01:58]} 21. g3 {[%clk 0:02:08]}  c5 {[%clk 0:01:52]} 22. b3 {[%clk 0:02:04]}  b5 {[%clk 0:01:52]} 23. c4 {[%clk 0:02:00]}  b4 {[%clk 0:01:38]} 24. Nc2 {[%clk 0:01:45]}  Nd4 {[%clk 0:01:37]} 25. Nxd4 {[%clk 0:01:42]}  Rxd4 {[%clk 0:01:38]} 26. g4 {[%clk 0:01:33]}  Bg6 {[%clk 0:01:37]} 27. Nf3 {[%clk 0:01:33]}  R4d6 {[%clk 0:01:32]} 28. Ne1 {[%clk 0:01:26]}  Kd7 {[%clk 0:01:30]} 29. f3 {[%clk 0:01:25]}  Ke7 {[%clk 0:01:30]} 30. Ree2 {[%clk 0:01:12]}  a5 {[%clk 0:01:30]} 31. a4 {[%clk 0:01:09]}  bxa3 {[%clk 0:01:28]} 32. Ra2 {[%clk 0:01:09]}  Rxd3 {[%clk 0:00:48]} 33. Nxd3 {[%clk 0:01:07]}  Rxd3 {[%clk 0:00:49]} 34. Rxa3 {[%clk 0:01:08]}  Rxf3 {[%clk 0:00:49]} 35. Kh2 {[%clk 0:00:55]}  Bf7 {[%clk 0:00:43]} 36. Rxa5 {[%clk 0:00:48]}  Kd6 {[%clk 0:00:34]} 37. Rd2+ {[%clk 0:00:42]}  Kc6 {[%clk 0:00:33]} 38. Rb5 {[%clk 0:00:38]}  Bg6 {[%clk 0:00:30]} 39. Rd5 {[%clk 0:00:37]}  Bxe4 {[%clk 0:00:28]} 40. Rdxc5+ {[%clk 0:00:36]}  Kd6 {[%clk 0:00:28]} 41. b4 {[%clk 0:00:33]}  Rg3 {[%clk 0:00:25]} 42. Rb8 {[%clk 0:00:19]}  Rg2+ {[%clk 0:00:24]} 43. Kh1 {[%clk 0:00:19]}  Rxg4+ {[%clk 0:00:24]} 44. Kh2 {[%clk 0:00:20]}  Rg2+ {[%clk 0:00:24]} 45. Kh1 {[%clk 0:00:20]}  Rg3+ {[%clk 0:00:12]} 46. Kh2 {[%clk 0:00:20]}  Bf5 {[%clk 0:00:12]} 47. Rd8+ {[%clk 0:00:17]}  Ke7 {[%clk 0:00:13]} 48. Rg8 {[%clk 0:00:13]}  Rxh3+ {[%clk 0:00:13]} 49. Kg2 {[%clk 0:00:14]}  Rg3+ {[%clk 0:00:13]} 50. Kf2 {[%clk 0:00:14]}  Kf7 {[%clk 0:00:11]} 51. Rh8 {[%clk 0:00:13]}  Kg7 {[%clk 0:00:11]} 52. Rd8 {[%clk 0:00:13]}  Kg6 {[%clk 0:00:09]} 53. Rxc7 {[%clk 0:00:13]}  Be4 {[%clk 0:00:07]} 54. b5 {[%clk 0:00:12]}  Rf3+ {[%clk 0:00:06]} 55. Ke2 {[%clk 0:00:12]}  h3 {[%clk 0:00:06]} 56. Rh8 {[%clk 0:00:12]}  Rg3 {[%clk 0:00:04]} 57. b6 {[%clk 0:00:12]}  Rb3 {[%clk 0:00:02]} 58. c5 {[%clk 0:00:11]}  g4 {[%clk 0:00:02]} 59. Rg8+ {[%clk 0:00:11]}  Kf5 {[%clk 0:00:02]} 60. Rh7 {[%clk 0:00:09]}  Kf4 {[%clk 0:00:02]} 61. Rh6 {[%clk 0:00:10]}  Rb2+ {[%clk 0:00:03]} 62. Kd1 {[%clk 0:00:10]}  f5 {[%clk 0:00:03]} 63. Rd8 {[%clk 0:00:08]}  Ke3 {[%clk 0:00:03]} 64. Rd2 {[%clk 0:00:08]}  Rb1# {[%clk 0:00:04]} 0-1


[Site "https://www.chess.com"]

[Event "Titled Tuesday Blitz December 27 Late 2022"]
[White "Moskvin, Anatoly"]
[Black "Skvortsov, Andrei"]
[WhiteFideId "24199990"]
[BlackFideId "24108600"]
[WhiteElo "2189"]
[BlackElo "2313"]
[Result "0-1"]
[Round "08"]
[TimeControl "180+2"]
[Date "2022.12.27"]
[WhiteClock "0:00:01"]
[BlackClock "0:00:28"]

1. e4 {[%clk 0:03:00]}  e6 {[%clk 0:02:57]} 2. Nf3 {[%clk 0:03:01]}  d5 {[%clk 0:02:58]} 3. e5 {[%clk 0:03:01]}  c5 {[%clk 0:02:58]} 4. b4 {[%clk 0:03:02]}  cxb4 {[%clk 0:02:57]} 5. d4 {[%clk 0:03:03]}  Nc6 {[%clk 0:02:53]} 6. a3 {[%clk 0:03:03]}  bxa3 {[%clk 0:02:46]} 7. c3 {[%clk 0:03:03]}  Nge7 {[%clk 0:02:43]} 8. h4 {[%clk 0:03:02]}  h5 {[%clk 0:02:44]} 9. Bd3 {[%clk 0:03:01]}  Nf5 {[%clk 0:02:43]} 10. g3 {[%clk 0:02:46]}  Be7 {[%clk 0:02:33]} 11. Ng5 {[%clk 0:02:47]}  Qa5 {[%clk 0:02:26]} 12. Bxf5 {[%clk 0:02:28]}  exf5 {[%clk 0:02:25]} 13. Bxa3 {[%clk 0:02:29]}  Qb6 {[%clk 0:02:11]} 14. Bxe7 {[%clk 0:02:08]}  Nxe7 {[%clk 0:02:08]} 15. O-O {[%clk 0:02:09]}  g6 {[%clk 0:02:04]} 16. c4 {[%clk 0:01:52]}  dxc4 {[%clk 0:02:01]} 17. d5 {[%clk 0:01:52]}  Qc5 {[%clk 0:01:56]} 18. Nc3 {[%clk 0:01:50]}  Bd7 {[%clk 0:01:47]} 19. d6 {[%clk 0:01:13]}  Nc6 {[%clk 0:01:37]} 20. Nd5 {[%clk 0:01:13]}  O-O-O {[%clk 0:01:26]} 21. Re1 {[%clk 0:00:20]}  Be6 {[%clk 0:01:22]} 22. Nxe6 {[%clk 0:00:19]}  fxe6 {[%clk 0:01:23]} 23. Nf4 {[%clk 0:00:20]}  Rhe8 {[%clk 0:01:15]} 24. Qa4 {[%clk 0:00:15]}  Nxe5 {[%clk 0:01:05]} 25. Rxe5 {[%clk 0:00:02]}  Qxe5 {[%clk 0:00:45]} 26. Qxc4+ {[%clk 0:00:02]}  Kb8 {[%clk 0:00:46]} 27. Qc7+ {[%clk 0:00:03]}  Ka8 {[%clk 0:00:46]} 28. Rb1 {[%clk 0:00:04]}  Qe4 {[%clk 0:00:41]} 29. d7 {[%clk 0:00:03]}  Qxb1+ {[%clk 0:00:38]} 30. Kh2 {[%clk 0:00:04]}  Rg8 {[%clk 0:00:29]} 31. Nxe6 {[%clk 0:00:04]}  Qb6 {[%clk 0:00:29]} 32. Qe5 {[%clk 0:00:01]}  Rxd7 {[%clk 0:00:28]} 0-1


[Site "https://www.chess.com"]

[Event "Titled Tuesday Blitz December 27 Late 2022"]
[White "Petrovic, Aleksa"]
[Black "Ai, Evan"]
[WhiteFideId "967629"]
[BlackFideId "2094770"]
[WhiteElo "2332"]
[BlackElo "2055"]
[Result "1-0"]
[Round "08"]
[TimeControl "180+2"]
[Date "2022.12.27"]
[WhiteClock "0:01:04"]
[BlackClock "0:00:04"]

1. d4 {[%clk 0:03:00]}  Nf6 {[%clk 0:02:59]} 2. c4 {[%clk 0:02:59]}  e6 {[%clk 0:02:58]} 3. Nf3 {[%clk 0:02:59]}  b6 {[%clk 0:02:58]} 4. g3 {[%clk 0:02:59]}  Bb7 {[%clk 0:02:58]} 5. Bg2 {[%clk 0:02:58]}  Be7 {[%clk 0:02:58]} 6. O-O {[%clk 0:02:58]}  O-O {[%clk 0:02:58]} 7. Nc3 {[%clk 0:02:58]}  Ne4 {[%clk 0:02:56]} 8. Nxe4 {[%clk 0:02:58]}  Bxe4 {[%clk 0:02:57]} 9. Ne1 {[%clk 0:02:58]}  Bxg2 {[%clk 0:02:56]} 10. Nxg2 {[%clk 0:02:58]}  d5 {[%clk 0:02:56]} 11. Qa4 {[%clk 0:02:58]}  Qd7 {[%clk 0:02:53]} 12. Qxd7 {[%clk 0:02:57]}  Nxd7 {[%clk 0:02:54]} 13. cxd5 {[%clk 0:02:57]}  exd5 {[%clk 0:02:55]} 14. Bf4 {[%clk 0:02:54]}  c5 {[%clk 0:02:54]} 15. dxc5 {[%clk 0:02:50]}  bxc5 {[%clk 0:02:51]} 16. Rfd1 {[%clk 0:02:50]}  Nf6 {[%clk 0:02:49]} 17. Ne3 {[%clk 0:02:48]}  Rfd8 {[%clk 0:02:45]} 18. Be5 {[%clk 0:02:33]}  d4 {[%clk 0:02:22]} 19. Nf5 {[%clk 0:02:28]}  Bf8 {[%clk 0:01:55]} 20. Bxf6 {[%clk 0:02:12]}  gxf6 {[%clk 0:01:56]} 21. Rac1 {[%clk 0:02:11]}  Rac8 {[%clk 0:01:52]} 22. Rc4 {[%clk 0:02:09]}  Rb8 {[%clk 0:01:37]} 23. b3 {[%clk 0:02:07]}  h5 {[%clk 0:01:25]} 24. Nh4 {[%clk 0:01:50]}  Kh7 {[%clk 0:01:13]} 25. Ng2 {[%clk 0:01:50]}  Kh6 {[%clk 0:00:56]} 26. Nf4 {[%clk 0:01:46]}  Bd6 {[%clk 0:00:53]} 27. Nd3 {[%clk 0:01:46]}  Rb5 {[%clk 0:00:51]} 28. Rdc1 {[%clk 0:01:44]}  Ra5 {[%clk 0:00:42]} 29. R1c2 {[%clk 0:01:44]}  Re8 {[%clk 0:00:35]} 30. Kg2 {[%clk 0:01:39]}  Kg6 {[%clk 0:00:16]} 31. Kf3 {[%clk 0:01:39]}  Rc8 {[%clk 0:00:06]} 32. h4 {[%clk 0:01:30]}  Kf5 {[%clk 0:00:05]} 33. b4 {[%clk 0:01:20]}  Ra3 {[%clk 0:00:04]} 34. bxc5 {[%clk 0:01:19]}  Be5 {[%clk 0:00:04]} 35. c6 {[%clk 0:01:17]}  Rc3 {[%clk 0:00:04]} 36. R2xc3 {[%clk 0:01:14]}  dxc3 {[%clk 0:00:05]} 37. Nxe5 {[%clk 0:01:14]}  fxe5 {[%clk 0:00:05]} 38. Rxc3 {[%clk 0:01:09]}  Ke6 {[%clk 0:00:06]} 39. c7 {[%clk 0:01:06]}  f5 {[%clk 0:00:05]} 40. e4 {[%clk 0:01:06]}  fxe4+ {[%clk 0:00:04]} 41. Kxe4 {[%clk 0:01:06]}  Kd6 {[%clk 0:00:04]} 42. f3 {[%clk 0:01:04]} 1-0


[Site "https://www.chess.com"]

[Event "Titled Tuesday Blitz December 27 Late 2022"]
[White "Przybylski, Wojciech"]
[Black "Mushini Ajay"]
[WhiteFideId "1117599"]
[BlackFideId "35066188"]
[WhiteElo "2321"]
[BlackElo "2310"]
[Result "0-1"]
[Round "08"]
[TimeControl "180+2"]
[Date "2022.12.27"]
[WhiteClock "0:00:04"]
[BlackClock "0:00:30"]

1. e4 {[%clk 0:02:59]}  e6 {[%clk 0:02:54]} 2. d4 {[%clk 0:02:59]}  d5 {[%clk 0:02:54]} 3. Nc3 {[%clk 0:02:59]}  Bb4 {[%clk 0:02:50]} 4. a3 {[%clk 0:02:58]}  Bxc3+ {[%clk 0:02:46]} 5. bxc3 {[%clk 0:02:59]}  dxe4 {[%clk 0:02:45]} 6. Qg4 {[%clk 0:02:58]}  Nf6 {[%clk 0:02:41]} 7. Qxg7 {[%clk 0:02:57]}  Rg8 {[%clk 0:02:41]} 8. Qh6 {[%clk 0:02:57]}  Rg6 {[%clk 0:02:41]} 9. Qe3 {[%clk 0:02:56]}  Nc6 {[%clk 0:02:38]} 10. Ne2 {[%clk 0:02:55]}  e5 {[%clk 0:02:36]} 11. h3 {[%clk 0:02:51]}  Be6 {[%clk 0:02:31]} 12. g4 {[%clk 0:02:37]}  h5 {[%clk 0:02:18]} 13. g5 {[%clk 0:02:32]}  Nd5 {[%clk 0:02:13]} 14. Qxe4 {[%clk 0:02:30]}  Qd7 {[%clk 0:02:00]} 15. Bg2 {[%clk 0:02:26]}  O-O-O {[%clk 0:01:58]} 16. c4 {[%clk 0:02:14]}  Nc3 {[%clk 0:01:45]} 17. Nxc3 {[%clk 0:02:08]}  exd4 {[%clk 0:01:43]} 18. Nb5 {[%clk 0:02:01]}  Bxc4 {[%clk 0:01:18]} 19. Nxa7+ {[%clk 0:01:57]}  Kb8 {[%clk 0:01:16]} 20. Nxc6+ {[%clk 0:01:56]}  Rxc6 {[%clk 0:01:14]} 21. Kd1 {[%clk 0:00:34]}  d3 {[%clk 0:01:12]} 22. Be3 {[%clk 0:00:10]}  dxc2+ {[%clk 0:01:03]} 23. Kc1 {[%clk 0:00:10]}  Qd1+ {[%clk 0:00:58]} 24. Kb2 {[%clk 0:00:10]}  Rb6+ {[%clk 0:00:46]} 25. Bxb6 {[%clk 0:00:09]}  c1=Q+ {[%clk 0:00:43]} 26. Rxc1 {[%clk 0:00:08]}  Rd2+ {[%clk 0:00:40]} 27. Kc3 {[%clk 0:00:05]}  Rd3+ {[%clk 0:00:34]} 28. Kxc4 {[%clk 0:00:04]}  Qb3+ {[%clk 0:00:33]} 29. Kc5 {[%clk 0:00:04]}  cxb6# {[%clk 0:00:30]} 0-1


[Site "https://www.chess.com"]

[Event "Titled Tuesday Blitz December 27 Late 2022"]
[White "Ptacnikova, Lenka"]
[Black "Eggleston, Thomas A"]
[WhiteFideId "305650"]
[BlackFideId "412139"]
[WhiteElo "2099"]
[BlackElo "2215"]
[Result "1-0"]
[Round "08"]
[TimeControl "180+2"]
[Date "2022.12.27"]
[WhiteClock "0:00:25"]
[BlackClock "0:00:01"]

1. d4 {[%clk 0:03:00]}  e6 {[%clk 0:02:58]} 2. e4 {[%clk 0:02:59]}  d5 {[%clk 0:02:57]} 3. Nd2 {[%clk 0:02:59]}  c5 {[%clk 0:02:57]} 4. exd5 {[%clk 0:02:58]}  exd5 {[%clk 0:02:56]} 5. Ngf3 {[%clk 0:02:54]}  Nf6 {[%clk 0:02:55]} 6. Bb5+ {[%clk 0:02:53]}  Bd7 {[%clk 0:02:55]} 7. Bxd7+ {[%clk 0:02:53]}  Nbxd7 {[%clk 0:02:54]} 8. O-O {[%clk 0:02:53]}  Be7 {[%clk 0:02:55]} 9. dxc5 {[%clk 0:02:51]}  Nxc5 {[%clk 0:02:55]} 10. Nd4 {[%clk 0:02:47]}  Nfe4 {[%clk 0:02:45]} 11. Nf5 {[%clk 0:02:41]}  Bf6 {[%clk 0:02:45]} 12. c3 {[%clk 0:02:38]}  O-O {[%clk 0:02:41]} 13. Nf3 {[%clk 0:02:38]}  Re8 {[%clk 0:02:31]} 14. Be3 {[%clk 0:02:37]}  Rc8 {[%clk 0:02:18]} 15. Bd4 {[%clk 0:02:32]}  g6 {[%clk 0:02:09]} 16. Bxf6 {[%clk 0:02:29]}  Qxf6 {[%clk 0:02:08]} 17. Ne3 {[%clk 0:02:28]}  Rcd8 {[%clk 0:02:03]} 18. Nxd5 {[%clk 0:02:22]}  Qd6 {[%clk 0:01:51]} 19. c4 {[%clk 0:02:21]}  a5 {[%clk 0:01:47]} 20. Qc2 {[%clk 0:02:11]}  h5 {[%clk 0:01:39]} 21. h3 {[%clk 0:02:03]}  b5 {[%clk 0:01:36]} 22. Rad1 {[%clk 0:01:53]}  bxc4 {[%clk 0:01:26]} 23. Qxc4 {[%clk 0:01:51]}  Qb8 {[%clk 0:01:24]} 24. b3 {[%clk 0:01:44]}  Re6 {[%clk 0:01:13]} 25. Nc3 {[%clk 0:01:08]}  Nxc3 {[%clk 0:00:53]} 26. Qxc3 {[%clk 0:01:07]}  Rc8 {[%clk 0:00:52]} 27. Qxa5 {[%clk 0:01:05]}  Ra6 {[%clk 0:00:42]} 28. Qd2 {[%clk 0:01:04]}  Ne4 {[%clk 0:00:38]} 29. Qb2 {[%clk 0:01:00]}  Nc3 {[%clk 0:00:38]} 30. Ra1 {[%clk 0:00:59]}  Rf6 {[%clk 0:00:22]} 31. Nd4 {[%clk 0:00:54]}  Qe5 {[%clk 0:00:16]} 32. Qd2 {[%clk 0:00:28]}  Rd6 {[%clk 0:00:12]} 33. Nf3 {[%clk 0:00:26]}  Ne2+ {[%clk 0:00:05]} 34. Kh1 {[%clk 0:00:25]}  Rxd2 {[%clk 0:00:01]} 35. Nxe5 {[%clk 0:00:26]}  Rb2 {[%clk 0:00:01]} 36. Nc4 {[%clk 0:00:25]}  Rc2 {[%clk 0:00:01]} 37. Ne3 {[%clk 0:00:25]} 1-0


[Site "https://www.chess.com"]

[Event "Titled Tuesday Blitz December 27 Late 2022"]
[White "Quinones Garcia, Santiago"]
[Black "Bjelobrk, Igor"]
[WhiteFideId "4408497"]
[BlackFideId "4300726"]
[WhiteElo "2248"]
[BlackElo "2403"]
[Result "1-0"]
[Round "08"]
[TimeControl "180+2"]
[Date "2022.12.27"]
[WhiteClock "0:01:44"]
[BlackClock "0:00:13"]

1. d4 {[%clk 0:02:47]}  d5 {[%clk 0:02:59]} 2. c4 {[%clk 0:02:47]}  c6 {[%clk 0:02:58]} 3. Nf3 {[%clk 0:02:47]}  Nf6 {[%clk 0:02:57]} 4. e3 {[%clk 0:02:47]}  Bf5 {[%clk 0:02:53]} 5. Nc3 {[%clk 0:02:45]}  a6 {[%clk 0:02:51]} 6. Be2 {[%clk 0:02:41]}  h6 {[%clk 0:02:47]} 7. O-O {[%clk 0:02:40]}  e6 {[%clk 0:02:47]} 8. b3 {[%clk 0:02:37]}  Nbd7 {[%clk 0:02:46]} 9. Bb2 {[%clk 0:02:37]}  Be7 {[%clk 0:02:46]} 10. Ne5 {[%clk 0:02:36]}  Nxe5 {[%clk 0:02:46]} 11. dxe5 {[%clk 0:02:36]}  Nd7 {[%clk 0:02:46]} 12. f4 {[%clk 0:02:33]}  Qb6 {[%clk 0:02:43]} 13. Qd2 {[%clk 0:02:33]}  Bc5 {[%clk 0:02:42]} 14. Nd1 {[%clk 0:02:32]}  dxc4 {[%clk 0:02:36]} 15. Bxc4 {[%clk 0:02:29]}  Rd8 {[%clk 0:02:34]} 16. Qe2 {[%clk 0:02:20]}  Qa7 {[%clk 0:02:25]} 17. a4 {[%clk 0:02:18]}  O-O {[%clk 0:02:20]} 18. Kh1 {[%clk 0:02:16]}  Nb6 {[%clk 0:02:14]} 19. e4 {[%clk 0:02:12]}  Nxc4 {[%clk 0:01:52]} 20. Qxc4 {[%clk 0:02:11]}  Bg4 {[%clk 0:01:43]} 21. h3 {[%clk 0:02:04]}  b5 {[%clk 0:01:38]} 22. Qc2 {[%clk 0:01:56]}  Bxd1 {[%clk 0:01:32]} 23. Raxd1 {[%clk 0:01:56]}  bxa4 {[%clk 0:00:58]} 24. bxa4 {[%clk 0:01:54]}  Be3 {[%clk 0:00:54]} 25. f5 {[%clk 0:01:49]}  Rxd1 {[%clk 0:00:20]} 26. Rxd1 {[%clk 0:01:48]}  Bd4 {[%clk 0:00:21]} 27. Bxd4 {[%clk 0:01:45]}  Qd7 {[%clk 0:00:13]} 28. Bc5 {[%clk 0:01:44]} 1-0


[Site "https://www.chess.com"]

[Event "Titled Tuesday Blitz December 27 Late 2022"]
[White "Rangel, Daniel"]
[Black "Kopacz, Grzegorz"]
[WhiteFideId "2124475"]
[BlackFideId "1109880"]
[WhiteElo "2207"]
[BlackElo "1997"]
[Result "1-0"]
[Round "08"]
[TimeControl "180+2"]
[Date "2022.12.27"]
[WhiteClock "0:02:22"]
[BlackClock "0:00:44"]

1. e4 {[%clk 0:03:00]}  e6 {[%clk 0:01:52]} 2. d4 {[%clk 0:02:48]}  d5 {[%clk 0:01:52]} 3. Nd2 {[%clk 0:02:48]}  Nf6 {[%clk 0:01:52]} 4. Bd3 {[%clk 0:02:46]}  dxe4 {[%clk 0:01:45]} 5. Nxe4 {[%clk 0:02:47]}  Nxe4 {[%clk 0:01:44]} 6. Bxe4 {[%clk 0:02:48]}  g6 {[%clk 0:01:42]} 7. Nf3 {[%clk 0:02:47]}  Bg7 {[%clk 0:01:43]} 8. Bg5 {[%clk 0:02:47]}  Qd7 {[%clk 0:01:39]} 9. Qe2 {[%clk 0:02:38]}  O-O {[%clk 0:01:38]} 10. O-O-O {[%clk 0:02:36]}  Qa4 {[%clk 0:01:31]} 11. Kb1 {[%clk 0:02:36]}  Nc6 {[%clk 0:01:21]} 12. c3 {[%clk 0:02:34]}  Bd7 {[%clk 0:01:17]} 13. h4 {[%clk 0:02:33]}  b5 {[%clk 0:01:15]} 14. h5 {[%clk 0:02:33]}  b4 {[%clk 0:01:15]} 15. b3 {[%clk 0:02:31]}  Qa3 {[%clk 0:01:11]} 16. c4 {[%clk 0:02:28]}  f5 {[%clk 0:00:59]} 17. Bc2 {[%clk 0:02:25]}  a5 {[%clk 0:00:54]} 18. Bc1 {[%clk 0:02:24]}  a4 {[%clk 0:00:48]} 19. Bxa3 {[%clk 0:02:24]}  bxa3 {[%clk 0:00:49]} 20. hxg6 {[%clk 0:02:24]}  hxg6 {[%clk 0:00:48]} 21. Ng5 {[%clk 0:02:22]}  axb3 {[%clk 0:00:47]} 22. Bxb3 {[%clk 0:02:23]}  Nxd4 {[%clk 0:00:44]} 23. Rxd4 {[%clk 0:02:23]}  Bxd4 {[%clk 0:00:44]} 24. Nxe6 {[%clk 0:02:22]} 1-0


[Site "https://www.chess.com"]

[Event "Titled Tuesday Blitz December 27 Late 2022"]
[White "Remolar Gallen, Jose"]
[Black "Jones, Gawain C B"]
[WhiteFideId "2215187"]
[BlackFideId "409561"]
[WhiteElo "2285"]
[BlackElo "2618"]
[Result "1/2-1/2"]
[Round "08"]
[TimeControl "180+2"]
[Date "2022.12.27"]
[WhiteClock "0:00:06"]
[BlackClock "0:00:02"]

1. d4 {[%clk 0:03:00]}  d5 {[%clk 0:02:57]} 2. c4 {[%clk 0:03:01]}  c6 {[%clk 0:02:58]} 3. Nc3 {[%clk 0:03:00]}  e6 {[%clk 0:02:58]} 4. Nf3 {[%clk 0:03:00]}  f5 {[%clk 0:02:57]} 5. Bf4 {[%clk 0:02:53]}  Nf6 {[%clk 0:02:57]} 6. e3 {[%clk 0:02:53]}  Bd6 {[%clk 0:02:51]} 7. Bxd6 {[%clk 0:02:50]}  Qxd6 {[%clk 0:02:51]} 8. Be2 {[%clk 0:02:49]}  O-O {[%clk 0:02:51]} 9. O-O {[%clk 0:02:49]}  Nbd7 {[%clk 0:02:51]} 10. Rb1 {[%clk 0:02:37]}  a5 {[%clk 0:02:50]} 11. a3 {[%clk 0:02:36]}  Kh8 {[%clk 0:02:39]} 12. Qc2 {[%clk 0:02:32]}  Ne4 {[%clk 0:02:35]} 13. b4 {[%clk 0:02:10]}  axb4 {[%clk 0:02:34]} 14. axb4 {[%clk 0:02:11]}  Ra3 {[%clk 0:02:22]} 15. Rb3 {[%clk 0:02:08]}  Rxb3 {[%clk 0:02:21]} 16. Qxb3 {[%clk 0:02:09]}  f4 {[%clk 0:02:10]} 17. exf4 {[%clk 0:02:05]}  Rxf4 {[%clk 0:02:00]} 18. c5 {[%clk 0:01:58]}  Qf8 {[%clk 0:02:00]} 19. Nd1 {[%clk 0:01:38]}  g5 {[%clk 0:01:41]} 20. Qe3 {[%clk 0:01:28]}  g4 {[%clk 0:01:38]} 21. Ne1 {[%clk 0:01:22]}  e5 {[%clk 0:01:30]} 22. Nd3 {[%clk 0:01:18]}  Rf5 {[%clk 0:01:12]} 23. Bxg4 {[%clk 0:01:14]}  exd4 {[%clk 0:01:10]} 24. Qxd4+ {[%clk 0:01:11]}  Qf6 {[%clk 0:01:10]} 25. Qxf6+ {[%clk 0:01:07]}  Rxf6 {[%clk 0:01:11]} 26. Re1 {[%clk 0:01:02]}  Ndxc5 {[%clk 0:01:07]} 27. bxc5 {[%clk 0:00:54]}  Bxg4 {[%clk 0:01:04]} 28. f3 {[%clk 0:00:54]}  Bxf3 {[%clk 0:00:55]} 29. gxf3 {[%clk 0:00:55]}  Rxf3 {[%clk 0:00:55]} 30. Re3 {[%clk 0:00:56]}  Rxe3 {[%clk 0:00:41]} 31. Nxe3 {[%clk 0:00:57]}  Kg7 {[%clk 0:00:42]} 32. Kg2 {[%clk 0:00:52]}  Kf6 {[%clk 0:00:41]} 33. Kf3 {[%clk 0:00:52]}  Ng5+ {[%clk 0:00:39]} 34. Kg4 {[%clk 0:00:50]}  Ne6 {[%clk 0:00:38]} 35. h4 {[%clk 0:00:48]}  Kg6 {[%clk 0:00:27]} 36. Nf4+ {[%clk 0:00:33]}  Kf6 {[%clk 0:00:27]} 37. Nxe6 {[%clk 0:00:29]}  Kxe6 {[%clk 0:00:28]} 38. Kf4 {[%clk 0:00:29]}  d4 {[%clk 0:00:28]} 39. Nc4 {[%clk 0:00:18]}  Kd5 {[%clk 0:00:27]} 40. Nd6 {[%clk 0:00:17]}  b5 {[%clk 0:00:15]} 41. Ne4 {[%clk 0:00:08]}  b4 {[%clk 0:00:14]} 42. Nd2 {[%clk 0:00:04]}  Kxc5 {[%clk 0:00:06]} 43. Ke4 {[%clk 0:00:04]}  h5 {[%clk 0:00:05]} 44. Ke5 {[%clk 0:00:02]}  d3 {[%clk 0:00:03]} 45. Ke4 {[%clk 0:00:02]}  b3 {[%clk 0:00:03]} 46. Nxb3+ {[%clk 0:00:02]}  Kc4 {[%clk 0:00:04]} 47. Nd2+ {[%clk 0:00:02]}  Kc3 {[%clk 0:00:04]} 48. Ke3 {[%clk 0:00:02]}  c5 {[%clk 0:00:03]} 49. Ne4+ {[%clk 0:00:02]}  Kc2 {[%clk 0:00:04]} 50. Nd2 {[%clk 0:00:01]}  Kc3 {[%clk 0:00:02]} 51. Ne4+ {[%clk 0:00:02]}  Kc4 {[%clk 0:00:03]} 52. Nd2+ {[%clk 0:00:02]}  Kd5 {[%clk 0:00:02]} 53. Kxd3 {[%clk 0:00:02]}  Ke5 {[%clk 0:00:02]} 54. Kc4 {[%clk 0:00:02]}  Kf4 {[%clk 0:00:03]} 55. Kxc5 {[%clk 0:00:02]}  Kg4 {[%clk 0:00:03]} 56. Kd4 {[%clk 0:00:03]}  Kxh4 {[%clk 0:00:04]} 57. Ke3 {[%clk 0:00:04]}  Kg3 {[%clk 0:00:04]} 58. Ne4+ {[%clk 0:00:04]}  Kg2 {[%clk 0:00:03]} 59. Nf2 {[%clk 0:00:04]}  h4 {[%clk 0:00:04]} 60. Ke2 {[%clk 0:00:05]}  Kg3 {[%clk 0:00:03]} 61. Ke3 {[%clk 0:00:05]}  Kg2 {[%clk 0:00:03]} 62. Ke2 {[%clk 0:00:06]}  Kg3 {[%clk 0:00:02]} 63. Ke3 {[%clk 0:00:06]}  h3 {[%clk 0:00:02]} 64. Nxh3 {[%clk 0:00:06]} 1/2-1/2


[Site "https://www.chess.com"]